bitfinex-derivatives/quotes_ETHF0:USTF0_20241023
["timestamp","ask_amount","ask_price","bid_price","bid_amount"]
[1729685868932,3.59605,2577.4,2577.2,0.81586]
[1729685869331,3.2078,2577.4,2577.2,0.4276]
[1729685869536,3.59605,2577.4,2577.2,0.81586]
[1729685869833,3.59605,2577.4,2577.3,0.38825]
[1729685870534,3.2078,2577.4,2577.3,0.38825]
[1729685870735,3.59604,2577.4,2577.3,0.38825]
[1729685871434,0.38824,2577.4,2577.3,0.38825]
[1729685873549,6.62603,2577.5,2577.4,0.38824]
[1729685874335,3.2078,2577.5,2577.4,0.38824]
[1729685874533,3.2856,2578.1,2577.4,0.38824]
[1729685874534,3.2078,2577.9,2577.4,0.38824]
[1729685874723,3.2078,2577.9,2577.5,0.4167]
[1729685874928,3.59597,2577.9,2577.8,0.38817]
[1729685875329,0.38821,2577.7,2577.6,0.38819]
[1729685876437,0.38823,2577.5,2577.4,0.38822]
[1729685876633,3.2078,2577.6,2577.0,1.37484]
[1729685876839,0.38825,2577.4,2577.3,0.38824]
[1729685877042,0.38824,2577.5,2577.4,0.38823]
[1729685877335,3.2078,2577.6,2577.2,1.22604708]
[1729685877530,3.2078,2577.6,2577.3,0.38824]
[1729685877531,0.38824,2577.4,2577.3,0.38824]
[1729685877740,0.38823,2577.5,2577.4,0.38823]
[1729685878033,0.38824,2577.4,2577.3,0.38825]
[1729685878235,3.2078,2577.6,2577.3,0.38825]
[1729685878438,0.38823,2577.5,2577.3,0.38825]
[1729685880143,3.2078,2577.6,2577.2,1.22604708]
[1729685880334,0.38823,2577.5,2577.3,0.38824]
[1729685880736,0.38823,2577.5,2577.4,0.38823]
[1729685880935,3.2078,2577.6,2577.2,1.22604708]
[1729685881130,0.38823,2577.5,2577.3,0.38824]
[1729685881735,0.38823,2577.5,2577.2,1.22604708]
[1729685881936,0.38823,2577.5,2577.4,0.38824]
[1729685882136,3.2078,2577.6,2577.4,0.38824]
[1729685882634,0.38822,2577.5,2577.4,0.38824]
[1729685882837,3.2078,2577.6,2577.5,0.38822]
[1729685883232,3.2078,2577.6,2577.5,7.29822]
[1729685883444,3.2078,2577.9,2577.8,0.38817]
[1729685883635,3.2078,2577.9,2577.8,41.18817]
[1729685883838,0.38813,2578.1,2577.8,40.8]
[1729685884035,0.38813,2578.1,2578.0,0.38814]
[1729685884242,3.59592,2578.2,2578.1,0.38813]
[1729685885335,3.2078,2578.2,2578.1,0.38813]
[1729685885843,3.59591,2578.2,2578.1,0.38813]
[1729685886840,3.2078,2578.2,2578.1,0.38813]
[1729685887544,3.59591,2578.2,2578.1,0.38813]
[1729685888849,3.2078,2578.2,2578.1,0.38813]
[1729685889048,3.59591,2578.2,2578.1,0.38813]
[1729685891038,0.3881,2578.4,2578.3,0.38809]
[1729685891841,0.38809,2578.5,2578.4,0.38808]
[1729685896244,3.2078,2578.6,2578.5,0.38807]
[1729685896650,3.2078,2578.9,2578.3,1.38815]
[1729685896853,0.38805,2578.7,2578.6,0.38804]
[1729685897045,3.2078,2578.9,2578.5,4.00017]
[1729685897251,3.59581,2578.9,2578.8,0.38802]
[1729685897447,3.2078,2578.9,2578.8,0.38802]
[1729685897648,3.59581,2578.9,2578.8,0.38802]
[1729685897949,3.2078,2578.9,2578.8,0.38802]
[1729685898242,3.2078,2578.9,2578.8,0.80672]
[1729685899440,3.59577,2579.2,2579.1,0.38798]
[1729685900054,3.2078,2579.2,2579.1,0.38798]
[1729685900450,0.38798,2579.1,2579.0,0.38798]
[1729685900647,0.38798,2579.1,2579.0,41.18799]
[1729685900852,0.38798,2579.1,2579.0,40.8]
[1729685901752,0.38798,2579.1,2579.0,45.06559]
[1729685902456,3.2078,2579.2,2579.0,44.6776]
[1729685902655,3.59578,2579.2,2579.1,0.38798]
[1729685903050,3.2078,2579.2,2579.1,0.38798]
[1729685903259,3.2078,2579.2,2579.1,4.26558]
[1729685903851,3.59576,2579.2,2579.1,4.26558]
[1729685904247,3.2078,2579.2,2579.1,4.26558]
[1729685904755,3.59576,2579.2,2579.1,0.38798]
[1729685904946,3.2078,2579.2,2579.1,3.41798]
[1729685905146,3.2078,2579.2,2579.1,7.29558]
[1729685905747,0.96975,2579.7,2579.3,0.38794]
[1729685905748,0.38794,2579.4,2579.3,0.38794]
[1729685905953,3.59573,2579.5,2579.4,0.38793]
[1729685906169,0.38791,2579.6,2579.4,0.38792]
[1729685906461,0.38791,2579.6,2579.5,0.3956]
[1729685906753,0.38791,2579.6,2579.5,0.78352]
[1729685906959,0.38791,2579.6,2579.5,0.3956]
[1729685907259,0.38791,2579.6,2579.5,0.78352]
[1729685912850,0.38791,2579.6,2579.5,3.81352]
[1729685913057,0.3879,2579.7,2579.6,0.38788]
[1729685913558,3.2078,2579.9,2579.6,0.38788]
[1729685913559,0.38788,2579.8,2579.7,0.38787]
[1729685913758,0.38788,2579.8,2579.7,4.20407]
[1729685913955,0.38788,2579.8,2579.7,3.8162]
[1729685914160,0.38788,2579.8,2579.7,4.20409]
[1729685914354,0.38788,2579.8,2579.7,3.8162]
[1729685915256,3.2078,2579.9,2579.7,3.8162]
[1729685915658,0.38788,2579.8,2579.7,0.7862]
[1729685915854,3.876,2579.8,2579.1,6.2378]
[1729685916059,3.876,2579.8,2579.1,3.41798]
[1729685916060,0.38796,2579.2,2579.1,3.41798]
[1729685916365,0.38796,2579.2,2579.1,7.69207138]
[1729685917259,0.38796,2579.2,2579.1,8.10227138]
[1729685917460,0.38793,2579.4,2579.3,3.41794]
[1729685917655,0.389,2580.0,2579.3,3.03]
[1729685917656,3.2078,2579.9,2579.3,3.03]
[1729685917862,0.96969,2579.8,2579.5,3.03]
[1729685918166,0.3879,2579.6,2579.5,3.03]
[1729685918460,0.38793,2579.4,2579.3,3.41794]
[1729685918664,0.38793,2579.4,2579.3,3.03]
[1729685918856,0.38793,2579.4,2579.3,3.41795]
[1729685919053,0.38793,2579.4,2579.3,3.03]
[1729685919368,0.38796,2579.2,2579.1,3.83669138]
[1729685920664,0.38796,2579.2,2579.1,4.22467138]
[1729685920968,0.38796,2579.2,2579.1,3.83669138]
[1729685921152,0.38796,2579.2,2579.1,4.22467138]
[1729685921757,0.38796,2579.2,2579.1,3.83669138]
[1729685921968,0.38796,2579.2,2579.1,4.22467138]
[1729685922963,3.2078,2579.6,2579.1,3.83669138]
[1729685923168,0.38794,2579.4,2579.3,3.41794]
[1729685923460,0.38791,2579.6,2579.5,0.38791]
[1729685923665,0.38789,2579.7,2579.6,0.38789]
[1729685923868,0.38788,2579.8,2579.7,0.38788]
[1729685924258,3.2078,2580.0,2579.7,3.03]
[1729685924460,0.38787,2579.9,2579.8,0.38787]
[1729685924660,0.38787,2579.8,2579.7,3.41788]
[1729685925269,0.38787,2579.9,2579.8,0.38787]
[1729685925468,3.2078,2580.0,2579.7,3.03]
[1729685925765,0.38787,2579.8,2579.7,3.03]
[1729685928463,0.38787,2579.8,2579.6,1.2034]
[1729685928464,4.17742,2580.0,2579.6,1.2034]
[1729685928668,0.38789,2579.7,2579.6,1.2034]
[1729685928858,0.38789,2579.7,2579.6,0.7904]
[1729685929664,0.38789,2579.7,2579.5,3.03]
[1729685929665,0.3879,2579.6,2579.5,3.03]
[1729685936868,4.17742,2580.0,2579.7,0.38788]
[1729685937067,0.38784,2580.0,2579.9,3.03]
[1729685938669,0.38784,2580.0,2579.9,3.4261]
[1729685939378,0.38784,2580.0,2579.9,3.81396]
[1729685939978,0.96951,2580.3,2579.9,3.4261]
[1729685940176,0.38784,2580.1,2580.0,0.38783]
[1729685940373,0.96951,2580.3,2579.9,3.4261]
[1729685940579,0.38784,2580.1,2580.0,0.38783]
[1729685941777,3.2078,2580.4,2579.9,3.4261]
[1729685942073,0.96929,2580.9,2580.4,0.38778]
[1729685942278,0.38772,2580.8,2580.7,3.03]
[1729685942679,0.38775,2580.6,2580.5,0.3901]
[1729685942884,4.26295,2580.6,2580.5,0.3901]
[1729685943281,0.38775,2580.6,2580.5,3.4201]
[1729685943472,0.38775,2580.6,2580.5,3.80787]
[1729685943787,0.38773,2580.8,2580.7,0.38774]
[1729685943969,3.2078,2581.0,2580.7,3.03]
[1729685944169,0.38771,2580.9,2580.8,0.38772]
[1729685944580,3.5955,2581.0,2580.9,0.38771]
[1729685945378,0.38772,2580.9,2580.8,0.38771]
[1729685945672,3.5955,2581.0,2580.9,0.38771]
[1729685946069,0.3877,2581.0,2580.9,0.38771]
[1729685946274,4.17695,2581.3,2580.7,3.03]
[1729685946483,0.3877,2581.0,2580.9,0.3877]
[1729685947186,0.38767,2581.2,2581.1,0.38766]
[1729685947372,0.38767,2581.2,2581.1,3.41766]
[1729685947676,0.38767,2581.2,2581.1,3.41768]
[1729685948269,0.38767,2581.2,2581.1,3.03]
[1729685948468,0.38767,2581.2,2581.1,3.41768]
[1729685948884,0.96898,2581.7,2581.1,3.03]
[1729685949073,0.38765,2581.3,2581.2,0.38765]
[1729685949275,0.38766,2581.2,2581.1,3.41767]
[1729685949473,3.2078,2581.5,2581.1,3.03]
[1729685949675,0.38766,2581.2,2581.1,3.41767]
[1729685949876,0.38766,2581.2,2581.1,3.03]
[1729685950576,0.38766,2581.2,2581.1,3.4191]
[1729685951080,0.38762,2581.5,2581.4,0.38763]
[1729685951279,3.5965,2581.9,2581.4,3.03]
[1729685951581,0.3876,2581.7,2581.5,3.4552]
[1729685951776,0.38759,2581.7,2581.6,0.4134]
[1729685953980,0.38759,2581.7,2581.3,3.03]
[1729685953981,3.2078,2581.9,2581.3,3.03]
[1729685954288,0.38762,2581.5,2581.4,0.38763]
[1729685954783,0.38763,2581.4,2581.3,3.81843]
[1729685955185,3.2078,2581.9,2581.3,3.4308]
[1729685955384,0.38759,2581.7,2581.6,3.4176]
[1729685955885,0.38759,2581.7,2581.6,0.3876]
[1729685956182,3.2078,2581.9,2581.5,3.03]
[1729685956386,0.3876,2581.7,2581.6,0.38759]
[1729685956877,0.3876,2581.7,2581.6,0.80819]
[1729685957679,0.3876,2581.7,2581.6,3.83819]
[1729685958577,0.3876,2581.7,2581.6,3.4506]
[1729685958778,0.3876,2581.7,2581.6,0.4206]
[1729685959885,3.59537,2581.9,2581.8,0.38757]
[1729685960081,3.59537,2581.9,2581.8,3.41757]
[1729685960283,3.2078,2581.9,2581.8,3.41757]
[1729685960888,0.38754,2582.1,2582.0,0.38754]
[1729685962393,0.38756,2581.9,2581.8,3.4516]
[1729685962683,0.38756,2581.9,2581.8,0.4216]
[1729685965487,4.26036,2581.9,2581.8,0.4216]
[1729685966392,0.38756,2581.9,2581.8,0.4216]
[1729685967289,4.26036,2581.9,2581.8,0.4216]
[1729685967495,0.38759,2581.7,2581.6,44.657]
[1729685968190,0.38759,2581.7,2581.6,45.0446]
[1729685968592,0.38759,2581.7,2581.6,48.9182]
[1729685968988,0.38759,2581.8,2581.7,0.38759]
[1729685970394,0.38759,2581.8,2581.7,4.26119]
[1729685970794,0.38759,2581.8,2581.7,3.8736]
[1729685971303,0.38759,2581.7,2581.6,41.627]
[1729685975697,0.38759,2581.7,2581.6,42.0146]
[1729685976498,3.2078,2582.1,2581.8,0.38757]
[1729685976499,0.38757,2581.9,2581.8,0.38757]
[1729685976699,0.38757,2581.9,2581.8,3.41757]
[1729685977195,0.0373,2582.2,2581.8,3.41757]
[1729685977196,0.38755,2582.0,2581.9,0.38755]
[1729685977395,0.38753,2582.1,2582.0,0.38753]
[1729685977599,0.38753,2582.1,2582.0,0.8491]
[1729685977804,0.38753,2582.1,2582.0,1.23664]
[1729685978801,0.38753,2582.1,2582.0,0.8491]
[1729685979002,0.38753,2582.1,2582.0,1.23664]
[1729685979203,0.38753,2582.1,2582.0,0.8491]
[1729685979906,0.38753,2582.1,2582.0,4.0569]
[1729685980097,0.38753,2582.1,2582.0,1.23664]
[1729685980301,0.38753,2582.1,2582.0,4.44444]
[1729685981009,0.38753,2582.1,2582.0,4.0569]
[1729685981209,0.38753,2582.1,2582.0,4.44444]
[1729685982907,0.38751,2582.3,2582.2,0.38751]
[1729685983100,0.38749,2582.4,2582.3,0.38749]
[1729685983301,0.38748,2582.5,2582.4,0.38748]
[1729685983507,0.38748,2582.5,2582.4,3.41748]
[1729685984104,3.2078,2582.6,2582.4,3.03]
[1729685984598,0.38747,2582.5,2582.4,3.03]
[1729685985199,0.3875,2582.4,2582.1,2.12842]
[1729685985402,0.38751,2582.2,2582.1,1.7409]
[1729685988410,0.38751,2582.2,2582.1,5.6137]
[1729685989209,0.38751,2582.2,2582.1,6.00123]
[1729685989407,1.39207,2582.6,2582.1,5.6137]
[1729685989608,0.38748,2582.4,2582.3,3.03]
[1729685990119,0.38751,2582.2,2582.1,4.7709]
[1729685990310,0.38751,2582.2,2582.1,8.6437]
[1729685991515,0.38751,2582.2,2582.1,3.4509]
[1729685992319,0.38751,2582.2,2582.1,0.4209]
[1729685993118,0.38754,2582.0,2581.9,3.03]
[1729685993314,0.38756,2581.9,2581.8,0.4056]
[1729685995324,0.38756,2581.9,2581.8,3.4356]
[1729685995729,0.38756,2581.9,2581.8,0.4056]
[1729685996023,0.38759,2581.7,2581.6,43.83]
[1729685996222,0.38759,2581.7,2581.6,40.8]
[1729685996820,0.80319,2581.7,2581.6,40.8]
[1729685997526,0.80319,2581.7,2581.5,0.4184]
[1729685997527,0.3876,2581.6,2581.5,0.4184]
[1729685998021,0.3876,2581.6,2581.5,41.2184]
[1729686002036,0.3876,2581.6,2581.5,41.60602]
[1729686002528,0.3876,2581.6,2581.5,41.2184]
[1729686002823,0.3876,2581.6,2581.5,41.60602]
[1729686003533,0.3876,2581.6,2581.5,41.2184]
[1729686004425,0.3876,2581.6,2581.5,41.60602]
[1729686004931,0.3876,2581.6,2581.5,41.2184]
[1729686005727,0.3876,2581.6,2581.5,41.60602]
[1729686006334,0.3876,2581.6,2581.5,41.2184]
[1729686009223,0.3876,2581.6,2581.5,41.60602]
[1729686009429,0.3876,2581.6,2581.5,41.2184]
[1729686009828,0.3876,2581.6,2581.2,7.9859]
[1729686009829,0.38765,2581.3,2581.2,4.9729]
[1729686010234,0.38765,2581.3,2581.2,3.6359]
[1729686010535,0.38765,2581.3,2581.2,40.8]
[1729686010939,0.82415,2581.3,2581.2,40.8]
[1729686011133,4.3109,2581.3,2580.8,7.1181]
[1729686011324,0.38771,2580.9,2580.8,7.1181]
[1729686011538,0.38771,2580.9,2580.8,0.4302]
[1729686011835,4.84369,2580.9,2580.5,3.2078]
[1729686012034,0.38775,2580.6,2580.5,3.2078]
[1729686012240,0.38775,2580.6,2580.5,6.2378]
[1729686012440,0.38775,2580.6,2580.5,3.03]
[1729686013131,0.38777,2580.5,2580.4,0.4495]
[1729686013340,0.38777,2580.5,2580.2,3.6559]
[1729686013341,0.3878,2580.3,2580.2,3.2078]
[1729686013837,0.3878,2580.3,2580.2,44.0078]
[1729686014330,0.3878,2580.3,2580.2,40.8]
[1729686025642,0.3878,2580.3,2579.8,1.3153]
[1729686025842,3.03,2580.1,2579.5,0.4463]
[1729686026143,0.3879,2579.6,2579.5,0.4477]
[1729686027245,7.0846,2579.6,2579.0,3.4614]
[1729686027548,0.38798,2579.1,2579.0,3.4614]
[1729686027738,0.38798,2579.1,2579.0,3.84939]
[1729686027942,0.38798,2579.1,2579.0,3.4614]
[1729686028250,0.38798,2579.1,2579.0,3.84939]
[1729686028650,0.38798,2579.1,2579.0,3.8869]
[1729686028843,0.96981,2579.5,2579.0,3.8869]
[1729686029044,0.38797,2579.2,2579.1,0.38798]
[1729686029241,3.2078,2579.6,2579.0,3.8869]
[1729686029444,0.38795,2579.3,2579.2,3.41795]
[1729686029949,0.38795,2579.3,2579.2,3.8768]
[1729686030148,0.38798,2579.1,2579.0,3.8869]
[1729686030540,0.38798,2579.1,2579.0,0.8569]
[1729686032542,0.38798,2579.1,2579.0,1.24489]
[1729686032743,0.38798,2579.1,2579.0,0.8569]
[1729686033543,0.3881,2578.4,2578.2,3.2078]
[1729686033743,0.9701,2578.8,2578.3,1.3039]
[1729686034143,0.38808,2578.5,2578.3,1.69199]
[1729686034345,0.38808,2578.5,2578.3,1.3039]
[1729686034547,0.38805,2578.7,2578.5,0.38806]
[1729686034745,1.3934,2579.0,2578.5,0.38806]
[1729686034746,0.38805,2578.6,2578.5,0.38806]
[1729686034943,0.38805,2578.7,2578.5,0.38806]
[1729686035343,1.3934,2579.0,2578.5,0.38806]
[1729686035344,0.38805,2578.6,2578.5,0.38806]
[1729686035745,0.38804,2578.8,2578.6,0.38804]
[1729686035948,4.17775,2579.2,2578.6,0.38804]
[1729686036244,0.38804,2578.8,2578.6,0.38804]
[1729686036441,4.17775,2579.2,2578.7,3.03]
[1729686036649,0.38802,2578.9,2578.8,1.65782]
[1729686037146,3.2078,2579.2,2578.8,1.2698]
[1729686037341,0.388,2579.0,2578.9,0.388]
[1729686037541,0.38799,2579.1,2579.0,0.38799]
[1729686037741,3.2078,2579.2,2578.9,0.388]
[1729686037742,0.388,2579.0,2578.9,0.388]
[1729686039249,0.38799,2579.1,2578.9,0.388]
[1729686039445,0.38799,2579.1,2578.8,1.2698]
[1729686039652,3.2078,2579.2,2579.1,0.38798]
[1729686043153,3.2078,2579.2,2578.8,4.2998]
[1729686043544,0.38798,2579.1,2579.0,0.38798]
[1729686044454,0.38801,2578.9,2578.8,1.2698]
[1729686044652,0.38801,2578.9,2578.8,0.8356]
[1729686045448,5.32996,2579.1,2578.5,0.4448]
[1729686045648,0.97005,2578.9,2578.5,0.8831]
[1729686045849,0.38805,2578.7,2578.6,0.38805]
[1729686046652,0.38805,2578.6,2578.5,1.27116]
[1729686047250,0.38805,2578.7,2578.6,0.38805]
[1729686047651,0.38805,2578.6,2578.5,1.27117]
[1729686047859,0.38805,2578.6,2578.5,0.4383]
[1729686048455,0.38805,2578.6,2578.5,0.82637]
[1729686048656,0.38807,2578.5,2578.4,40.8]
[1729686052356,4.26647,2578.5,2578.4,40.8]
[1729686053461,0.3881,2578.3,2578.2,3.2078]
[1729686053862,0.3881,2578.3,2578.2,44.0078]
[1729686054256,0.3881,2578.3,2578.2,44.39591]
[1729686056255,0.3881,2578.3,2578.2,41.18811]
[1729686057461,0.3881,2578.4,2578.3,0.38808]
[1729686057657,0.3881,2578.4,2578.3,0.81298]
[1729686058456,0.3881,2578.4,2578.3,0.4249]
[1729686058861,0.3881,2578.4,2578.3,0.813]
[1729686059261,0.3881,2578.4,2578.3,0.4249]
[1729686059564,0.3881,2578.4,2578.3,0.813]
[1729686061060,0.3881,2578.4,2578.3,0.4249]
[1729686061261,0.3881,2578.3,2578.2,41.18811]
[1729686062956,1.39375,2578.6,2578.2,40.8]
[1729686063156,0.38809,2578.5,2578.4,0.38807]
[1729686063557,0.443,2578.7,2578.3,0.4263]
[1729686063558,1.41311,2578.7,2578.3,0.4263]
[1729686063762,0.38808,2578.4,2578.3,0.81439]
[1729686063962,0.38808,2578.4,2578.3,0.4263]
[1729686064364,0.3881,2578.3,2578.2,40.8]
[1729686064558,0.3881,2578.3,2578.2,41.18811]
[1729686064965,0.3881,2578.3,2578.2,40.8]
[1729686065360,0.3881,2578.3,2578.0,4.0943]
[1729686065361,0.38813,2578.1,2578.0,4.0943]
[1729686065669,0.38813,2578.1,2578.0,3.2078]
[1729686065968,3.8792,2578.1,2577.8,0.38817]
[1729686066162,0.38816,2577.9,2577.8,0.38817]
[1729686066359,0.38816,2577.9,2577.8,41.18817]
[1729686066960,4.59345,2578.4,2577.8,40.8]
[1729686067161,0.38812,2578.3,2578.2,0.3881]
[1729686067662,0.38811,2578.2,2578.1,1.28172]
[1729686068065,0.38811,2578.2,2578.1,0.4534]
[1729686069569,0.38816,2577.9,2577.8,41.62836]
[1729686070169,0.38816,2577.9,2577.8,41.2402]
[1729686070568,0.38816,2577.9,2577.8,41.62837]
[1729686071177,0.38815,2578.0,2577.9,0.38814]
[1729686071669,0.97019,2578.5,2577.8,45.24064]
[1729686071876,0.38813,2578.2,2577.8,45.24064]
[1729686072177,0.38816,2578.0,2577.9,0.38815]
[1729686072683,0.38811,2578.3,2578.2,0.38811]
[1729686072882,4.17792,2578.7,2578.0,3.2078]
[1729686073188,4.17792,2578.7,2578.1,0.97033]
[1729686073387,0.38809,2578.4,2578.3,0.38808]
[1729686073586,0.38808,2578.5,2578.4,0.38807]
[1729686075683,0.38808,2578.4,2578.3,0.82019]
[1729686076285,0.38808,2578.4,2578.3,0.4321]
[1729686076493,0.38811,2578.3,2578.2,0.3881]
[1729686077982,0.3881,2578.4,2578.3,0.38808]
[1729686079094,0.38808,2578.5,2578.4,0.38806]
[1729686079691,0.38807,2578.6,2578.5,0.38805]
[1729686079989,0.97007,2578.9,2578.4,0.38807]
[1729686079990,0.38809,2578.5,2578.4,0.38807]
[1729686081092,0.3881,2578.4,2578.3,0.38808]
[1729686082295,0.38811,2578.3,2578.2,0.3881]
[1729686083195,0.38811,2578.3,2578.2,0.8289]
[1729686084996,7.20788,2578.8,2578.2,0.4408]
[1729686085191,0.38808,2578.5,2578.4,0.38807]
[1729686086387,0.38806,2578.6,2578.5,0.38805]
[1729686086592,0.38808,2578.5,2578.4,0.38806]
[1729686087296,0.38806,2578.6,2578.5,0.38805]
[1729686088093,3.8907,2579.0,2578.3,0.97026]
[1729686088287,3.8907,2579.0,2578.5,0.38805]
[1729686088288,0.38806,2578.6,2578.5,0.38805]
[1729686094295,0.38805,2578.7,2578.6,0.38803]
[1729686095502,0.38804,2578.8,2578.7,0.38802]
[1729686096108,0.388,2579.1,2579.0,0.38798]
[1729686096595,0.38801,2578.9,2578.8,1.00900934]
[1729686096795,0.38801,2578.9,2578.8,40.8]
[1729686096999,1.39171,2579.0,2578.7,0.4412]
[1729686097000,0.38802,2578.8,2578.7,0.4412]
[1729686098305,0.38802,2578.8,2578.7,0.82924]
[1729686098697,0.38802,2578.8,2578.7,0.4412]
[1729686098903,5.05251,2579.0,2578.6,0.4349]
[1729686099102,0.38804,2578.7,2578.6,0.82295]
[1729686099504,0.97005,2578.9,2578.5,41.18807]
[1729686099700,0.38805,2578.6,2578.5,41.18807]
[1729686100314,0.38805,2578.6,2578.5,0.38807]
[1729686100509,3.8784,2578.6,2578.3,3.5959]
[1729686100710,0.38808,2578.4,2578.3,3.2078]
[1729686100911,0.4348,2578.5,2578.2,0.4505]
[1729686100912,3.9033,2578.5,2578.2,0.4505]
[1729686101114,0.38811,2578.2,2578.1,0.43]
[1729686101303,0.38811,2578.2,2577.9,1.45950934]
[1729686101620,0.38814,2578.0,2577.9,41.63866]
[1729686102320,0.38814,2578.0,2577.9,43.03866]
[1729686102623,1.78814,2578.1,2578.0,0.38814]
[1729686102818,1.78814,2578.1,2578.0,1.78814]
[1729686103014,1.78814,2578.1,2578.0,1.4]
[1729686103819,1.78814,2578.1,2578.0,1.78814]
[1729686104010,0.38814,2578.1,2578.0,1.78814]
[1729686104208,0.38813,2578.2,2578.1,0.38812]
[1729686104409,4.17803,2578.4,2577.9,41.2505]
[1729686104609,0.38814,2578.1,2578.0,0.38813]
[1729686106821,0.38812,2578.2,2578.1,0.38811]
[1729686107909,0.38811,2578.3,2578.2,0.3881]
[1729686109912,0.38813,2578.1,2578.0,0.81024]
[1729686110113,0.38813,2578.1,2578.0,0.38814]
[1729686110916,0.38814,2578.0,2577.9,41.63866]
[1729686112225,0.81924,2578.1,2578.0,0.38814]
[1729686112619,0.38814,2578.0,2577.9,41.63865]
[1729686115718,0.81924,2578.1,2578.0,0.38814]
[1729686116022,0.38814,2578.0,2577.9,41.63865]
[1729686122023,0.38814,2578.0,2577.9,41.2505]
[1729686122822,0.38814,2578.0,2577.9,40.8]
[1729686122823,7.29734,2578.0,2577.9,40.8]
[1729686123120,0.38819,2577.7,2577.6,0.8006]
[1729686123319,0.38819,2577.7,2577.6,0.4124]
[1729686123630,0.38819,2577.7,2577.6,41.2124]
[1729686124024,0.38819,2577.7,2577.6,41.60061]
[1729686124821,0.38819,2577.7,2577.6,0.80061]
[1729686125026,0.38819,2577.7,2577.2,1.52014072]
[1729686125027,7.765,2577.6,2577.2,1.01643726]
[1729686125225,0.97068,2577.2,2576.0,0.38936225]
[1729686125425,0.38842,2576.2,2576.1,40.8]
[1729686125623,0.38852,2575.5,2575.2,0.38856]
[1729686125929,3.2078,2575.8,2575.2,0.37839266]
[1729686126132,3.2078,2575.8,2575.3,40.8]
[1729686126323,0.3885,2575.7,2575.3,41.18854]
[1729686126523,0.3885,2575.7,2575.6,1.4]
[1729686126728,0.38849,2575.7,2575.6,1.4]
[1729686126921,0.38849,2575.7,2575.4,0.4054]
[1729686126922,0.38852,2575.6,2575.4,0.4054]
[1729686127124,3.2078,2575.8,2575.4,0.4054]
[1729686127320,1.78851,2575.6,2575.4,0.4054]
[1729686127927,1.4,2575.6,2575.4,1.8054]
[1729686128231,0.3885,2575.7,2575.4,0.4054]
[1729686129233,0.38849,2575.7,2575.4,0.4054]
[1729686129629,0.38849,2575.7,2575.4,0.79393]
[1729686131436,3.2078,2575.8,2575.4,0.4054]
[1729686132322,0.38851,2575.6,2575.4,0.79394]
[1729686132833,0.38851,2575.6,2575.4,0.4054]
[1729686133135,3.2078,2575.8,2575.4,0.4054]
[1729686133435,0.38854,2575.4,2575.3,40.8]
[1729686133730,3.41854,2575.4,2575.3,40.8]
[1729686134139,3.03,2575.4,2575.3,40.8]
[1729686134830,3.2078,2575.5,2575.3,40.8]
[1729686135129,2.62463118,2575.5,2575.3,40.8]
[1729686135335,2.62463118,2575.5,2575.4,0.81304]
[1729686140731,3.2078,2575.8,2575.4,4.69624]
[1729686140929,3.2078,2575.8,2575.7,0.38849]
[1729686143334,3.2078,2575.8,2575.7,4.27089]
[1729686143643,3.2078,2576.1,2576.0,0.38845]
[1729686143933,6.62623,2576.1,2576.0,0.38845]
[1729686144138,0.38846,2575.9,2575.8,0.81196]
[1729686145327,0.38845,2576.0,2575.9,0.38845]
[1729686146442,6.62624,2576.1,2576.0,0.38845]
[1729686146636,3.59623,2576.1,2576.0,0.38845]
[1729686146830,3.2078,2576.1,2576.0,0.38845]
[1729686147538,0.38839,2576.4,2576.3,0.3884]
[1729686147930,0.3884,2576.4,2576.3,0.38839]
[1729686148340,6.62618,2576.5,2576.4,0.38839]
[1729686148543,0.3884,2576.4,2576.3,0.38839]
[1729686152149,6.62618,2576.5,2576.4,0.38839]
[1729686152442,0.38842,2576.3,2576.2,0.38841]
[1729686152851,0.38842,2576.3,2576.2,41.18841]
[1729686153443,6.2378,2576.5,2576.2,40.8]
[1729686153655,0.3884,2576.4,2576.3,0.80079]
[1729686157742,3.2078,2576.5,2576.3,0.4124]
[1729686157943,3.59619,2576.5,2576.4,0.38839]
[1729686158442,0.38839,2576.4,2576.3,0.80079]
[1729686160644,3.2078,2576.5,2576.3,0.4124]
[1729686160840,3.59618,2576.5,2576.4,0.38839]
[1729686161040,3.59618,2576.5,2576.4,0.77869]
[1729686161244,10.1194,2576.5,2576.0,0.38160386]
[1729686161448,0.38843,2576.1,2576.0,0.80843]
[1729686161646,0.38843,2576.1,2576.0,41.60843]
[1729686161949,0.38843,2576.1,2575.8,0.4222]
[1729686161950,0.38846,2575.9,2575.8,0.4222]
[1729686162152,0.38848,2575.8,2575.7,0.38848]
[1729686162352,0.38848,2575.8,2575.7,41.18848]
[1729686162551,7.2089,2576.1,2575.7,40.8]
[1729686162847,0.38847,2575.9,2575.8,0.38845]
[1729686163052,0.38847,2575.9,2575.8,0.81065]
[1729686163751,0.38846,2576.0,2575.9,0.38845]
[1729686164549,3.2078,2576.1,2575.8,0.8221]
[1729686164755,3.2078,2576.1,2576.0,0.38845]
[1729686164756,0.38844,2576.1,2576.0,0.38845]
[1729686165553,0.38842,2576.3,2576.2,0.3884]
[1729686166148,0.38844,2576.2,2576.1,0.38842]